fUST/lending_fUST_20240621
["ID","MTS","AMOUNT","RATE_DAILY","PERIOD"]
[330041239,1718957451379,-3358.19,0.00052382,120]
[330041240,1718957451388,-1344.36506714,0.00052382,120]
[330041241,1718957538698,154.24002069,0.00048703,30]
[330041242,1718957539470,154.24002069,0.00049047,30]
[330041243,1718957542521,155.1322445,0.00048076,30]
[330041244,1718957543045,155.1322445,0.00049032,30]
[330041248,1718958517832,-169.969187,0.00021096,2]
[330041249,1718958550156,-1985.2962702,0.0003362,2]
[330041250,1718958550181,-250.0,0.00033691,2]
[330041251,1718958550203,-250.0,0.00033768,2]
[330041252,1718958550223,-165.919197,0.00033849,2]
[330041253,1718958550244,-169.969187,0.00037652,2]
[330041254,1718958550266,-2178.8153458,0.00041068,2]
[330041255,1718958552107,-22721.1846542,0.00041068,2]
[330041256,1718958552129,-191.635004,0.00041393,2]
[330041257,1718958552150,-303.7684036,0.0004466,2]
[330041258,1718958552170,-166.647945,0.00044865,2]
[330041259,1718958552193,-150.75878594,0.00046237,2]
[330041260,1718958552215,-640.19575744,0.00046574,7]
[330041261,1718958552234,-6496.73688209,0.00046575,120]
[330041262,1718958560132,-1377.67458081,0.00046575,120]
[330041263,1718958560152,-156.67967186,0.00048016,30]
[330041264,1718958560172,-156.67967186,0.00048021,30]
[330041265,1718958560191,-156.67967186,0.00048301,30]
[330041266,1718958560211,-5000.0,0.000489,4]
[330041267,1718958560231,-156.67967186,0.00048974,30]
[330041268,1718958560250,-500.0,0.00049,120]
[330041269,1718958560269,-500.0,0.00049,120]
[330041270,1718958560289,-500.0,0.00049,120]
[330041271,1718958560311,-500.0,0.00049,120]
[330041272,1718958560330,-500.0,0.00049,120]
[330041273,1718958560350,-500.0,0.00049,120]
[330041274,1718958560370,-500.0,0.00049,120]
[330041275,1718958560488,-500.0,0.00049,120]
[330041276,1718958560509,-500.0,0.00049,120]
[330041277,1718958560530,-500.0,0.00049,120]
[330041278,1718958560554,-500.0,0.00049,120]
[330041279,1718958560577,-500.0,0.00049,120]
[330041280,1718958560596,-290.63278768,0.00049,120]
[330041281,1718958567124,-209.36721232,0.00049,120]
[330041282,1718958567145,-164.13841532,0.00049057,30]
[330041283,1718958586560,665.43887905,0.000469,2]
[330041284,1718958592628,2315.32861438,0.000488,4]
[330041319,1718958633066,-155.13224451,0.00049592,30]
[330041321,1718958633075,-156.67967186,0.00049682,30]
[330041323,1718958633089,-156.67967186,0.00049891,30]
[330041325,1718958633099,-932.35581824,0.00049899,4]
[330041327,1718958633108,-156.67967186,0.00050024,60]
[330041329,1718958633116,-156.67967186,0.00050128,60]
[330041331,1718958633127,-159.24994648,0.0005054,60]
[330041333,1718958633135,-156.67967186,0.00050817,60]
[330041335,1718958633145,-156.67967186,0.00050998,60]
[330041337,1718958633154,-156.67967186,0.00051068,60]
[330041339,1718958633163,-195.51099613,0.00051317,4]
[330041341,1718958633172,-154.24002069,0.00051466,60]
[330041343,1718958633181,-665.43887905,0.000519,2]
[330041344,1718958633190,-5146.2862004,0.00051982,120]
[330041346,1718958633198,-256.9754041,0.00051999,4]
[330041348,1718958633207,-13520.368942,0.00052,120]
[330041351,1718958633217,-755.63899459,0.00052049,4]
[330041353,1718958633227,-19579.76618436,0.0005205,2]
[330041355,1718958633237,-479.67769974,0.00052053,120]
[330041357,1718958633247,-323.46954482,0.00052053,120]
[330041359,1718958633255,-500.0,0.00052053,120]
[330041361,1718958633265,-500.0,0.00052053,120]
[330041363,1718958633275,-163.31447647,0.00052053,120]
[330041365,1718958633285,-489.38828854,0.00052053,31]
[330041367,1718958633295,-235.87865388,0.00052053,120]
[330041379,1718958633401,-500.0,0.00052053,120]
[330041381,1718958633410,-500.0,0.00052054,120]
[330041383,1718958633420,-500.0,0.00052054,120]
[330041385,1718958633430,-500.0,0.00052054,120]
[330041387,1718958633439,-500.0,0.00052054,120]
[330041389,1718958633448,-504.92,0.00052054,120]
[330041391,1718958633458,-500.0,0.00052054,120]
[330041393,1718958633467,-500.0,0.00052054,120]
[330041395,1718958633476,-500.0,0.00052054,120]
[330041397,1718958633485,-500.0,0.00052054,120]
[330041399,1718958633495,-500.0,0.00052054,120]
[330041401,1718958633505,-266.49800013,0.00052054,120]
[330041403,1718958633514,-500.0,0.00052054,120]
[330041405,1718958633523,-500.0,0.00052054,120]
[330041406,1718958633535,-500.0,0.00052054,120]
[330041408,1718958633544,-500.0,0.00052054,120]
[330041410,1718958633558,-500.0,0.00052054,120]
[330041412,1718958633568,-500.0,0.00052054,120]
[330041415,1718958633580,-500.0,0.00052054,120]
[330041416,1718958633593,-500.0,0.00052054,120]
[330041418,1718958633603,-847.6,0.00052054,120]
[330041420,1718958633612,-518.92,0.00052054,120]
[330041422,1718958633624,-684.56,0.00052054,120]
[330041424,1718958633634,-867.73,0.00052054,120]
[330041426,1718958633644,-500.0,0.00052054,120]
[330041428,1718958633654,-500.0,0.00052054,120]
[330041430,1718958633664,-500.0,0.00052054,120]
[330041432,1718958633674,-262.06,0.00052054,120]
[330041434,1718958633684,-500.0,0.00052054,120]
[330041437,1718958633699,-500.0,0.00052054,120]
[330041439,1718958633710,-559.12,0.00052054,2]
[330041441,1718958633720,-500.0,0.00052054,2]
[330041442,1718958633729,-500.0,0.00052054,120]
[330041444,1718958633739,-500.0,0.00052054,120]
[330041447,1718958633748,-500.0,0.00052054,120]
[330041448,1718958633757,-418.88304483,0.00052054,120]
[330041500,1718958638574,-1337.13045504,0.00051944,28]
[330041502,1718958638588,-2347.41,0.00052044,3]
[330041503,1718958638598,-500.0,0.00052053,120]
[330041504,1718958638608,-500.0,0.00052053,120]
[330041505,1718958638619,-500.0,0.00052053,120]
[330041508,1718958638632,-500.0,0.00052053,120]
[330041510,1718958638641,-500.0,0.00052053,120]
[330041512,1718958638651,-252.33006283,0.00052053,120]
[330041514,1718958638662,-500.0,0.00052053,120]
[330041516,1718958638672,-500.0,0.00052053,120]
[330041518,1718958638681,-244.58695517,0.00052054,120]
[330041520,1718958638692,-500.0,0.00052054,120]
[330041522,1718958638703,-620.8,0.00052054,120]
[330041524,1718958638713,-497.27180528,0.00052054,120]
[330041526,1718958638724,-815.64,0.00052054,120]
[330041528,1718958638734,-500.0,0.00052054,120]
[330041530,1718958638744,-500.0,0.00052054,120]
[330041532,1718958638754,-500.0,0.00052054,120]
[330041534,1718958638764,-2173.16,0.00052054,120]
[330041536,1718958638774,-500.0,0.00052054,120]
[330041538,1718958638784,-500.0,0.00052054,120]
[330041539,1718958638794,-832.34,0.00052054,120]
[330041540,1718958638804,-500.0,0.00052054,120]
[330041541,1718958638815,-500.0,0.00052054,120]
[330041542,1718958638824,-2000.0,0.00052054,5]
[330041543,1718958638834,-500.0,0.00052054,120]
[330041544,1718958638847,-636.51,0.00052054,120]
[330041545,1718958638857,-500.0,0.00052054,120]
[330041546,1718958638867,-500.0,0.00052054,120]
[330041547,1718958638877,-559.2,0.00052054,120]
[330041548,1718958638887,-500.0,0.00052054,120]
[330041549,1718958638897,-500.0,0.00052054,120]
[330041550,1718958638908,-500.0,0.00052054,120]
[330041551,1718958638918,-797.62,0.00052054,120]
[330041552,1718958638928,-500.0,0.00052054,120]
[330041553,1718958638938,-500.0,0.00052054,120]
[330041554,1718958639083,-500.0,0.00052054,120]
[330041555,1718958639098,-500.0,0.00052054,120]
[330041556,1718958639108,-500.0,0.00052054,120]
[330041557,1718958639118,-500.0,0.00052054,120]
[330041558,1718958639127,-500.0,0.00052054,120]
[330041559,1718958639141,-1000.26,0.00052054,120]
[330041560,1718958639151,-1612.37,0.00052054,120]
[330041561,1718958639161,-500.0,0.00052054,120]
[330041562,1718958639172,-500.0,0.00052054,120]
[330041563,1718958639186,-500.0,0.00052054,120]
[330041564,1718958639197,-500.0,0.00052054,7]
[330041565,1718958639207,-500.0,0.00052054,120]
[330041566,1718958639221,-427.32367718,0.00052054,120]
[330041567,1718958639231,-882.82,0.00052054,120]
[330041568,1718958639243,-500.0,0.00052054,120]
[330041569,1718958639253,-1308.42,0.00052054,120]
[330041570,1718958639263,-1449.31,0.00052054,120]
[330041571,1718958639273,-500.0,0.00052054,120]
[330041572,1718958639283,-500.0,0.00052054,120]
[330041573,1718958639293,-500.0,0.00052054,120]
[330041574,1718958639302,-500.0,0.00052054,120]
[330041575,1718958639313,-573.49,0.00052054,120]
[330041576,1718958639324,-330.27830913,0.00052054,120]
[330041577,1718958639334,-500.0,0.00052054,120]
[330041578,1718958639349,-500.0,0.00052054,7]
[330041579,1718958639360,-500.0,0.00052054,120]
[330041580,1718958639371,-500.0,0.00052054,120]
[330041581,1718958639382,-500.0,0.00052054,120]
[330041582,1718958639392,-641.04,0.00052054,120]
[330041583,1718958639403,-500.0,0.00052054,120]
[330041584,1718958639413,-1688.86,0.00052054,120]
[330041585,1718958639423,-1450.84,0.00052054,120]
[330041586,1718958639433,-500.0,0.00052054,120]
[330041587,1718958639443,-500.0,0.00052054,120]
[330041588,1718958639453,-1047.3591004,0.00052054,120]
[330041589,1718958639463,-500.0,0.00052054,120]
[330041590,1718958639474,-500.0,0.00052054,120]
[330041591,1718958639484,-507.72768513,0.00052054,120]
[330041592,1718958639495,-500.0,0.00052054,120]
[330041593,1718958639505,-500.0,0.00052054,120]
[330041594,1718958639516,-589.47,0.00052054,120]
[330041595,1718958639525,-506.65411895,0.00052054,120]
[330041596,1718958639537,-4068.38,0.00052054,120]
[330041597,1718958639549,-500.0,0.00052054,120]
[330041598,1718958639559,-1325.21,0.00052054,120]
[330041599,1718958639570,-500.0,0.00052054,120]
[330041600,1718958639581,-500.0,0.00052054,120]
[330041601,1718958639592,-1256.39,0.00052054,120]
[330041602,1718958639602,-8594.43,0.00052054,120]
[330041603,1718958639613,-2048.77,0.00052054,120]
[330041604,1718958639625,-500.0,0.00052054,120]
[330041605,1718958639636,-500.0,0.00052054,120]
[330041606,1718958639646,-500.0,0.00052054,120]
[330041607,1718958639657,-668.83,0.00052054,120]
[330041608,1718958639667,-27261.05,0.00052054,120]
[330041609,1718958639678,-500.0,0.00052054,120]
[330041610,1718958639688,-505.73182794,0.00052054,120]
[330041611,1718958639698,-1002.32,0.00052054,120]
[330041612,1718958639710,-357.96120482,0.00052054,120]
[330041613,1718958639720,-500.0,0.00052054,120]
[330041614,1718958639731,-500.0,0.00052054,120]
[330041615,1718958639742,-500.0,0.00052054,120]
[330041616,1718958639752,-500.0,0.00052054,120]
[330041617,1718958639763,-500.0,0.00052054,120]
[330041618,1718958639773,-500.0,0.00052054,120]
[330041619,1718958639784,-500.0,0.00052054,120]
[330041620,1718958639795,-500.0,0.00052054,120]
[330041621,1718958639806,-500.0,0.00052054,120]
[330041622,1718958639816,-505.26,0.00052054,120]
[330041623,1718958639826,-985.96,0.00052054,120]
[330041624,1718958639837,-438.08284621,0.00052054,120]
[330041625,1718958639848,-500.0,0.00052054,120]
[330041626,1718958639859,-2489.39,0.00052054,21]
[330041627,1718958639869,-500.0,0.00052054,120]
[330041628,1718958639880,-834.49,0.00052054,120]
[330041629,1718958639890,-500.0,0.00052054,120]
[330041630,1718958639901,-500.0,0.00052054,120]
[330041631,1718958639911,-500.0,0.00052054,120]
[330041632,1718958639921,-500.0,0.00052054,120]
[330041633,1718958639932,-4928.55,0.00052054,120]
[330041634,1718958639942,-500.0,0.00052054,120]
[330041635,1718958639952,-501.66410091,0.00052054,120]
[330041636,1718958639963,-4260.53,0.00052054,120]
[330041637,1718958639974,-1027.56,0.00052054,120]
[330041638,1718958639984,-250.0,0.00052054,120]
[330041639,1718958639994,-1048.49,0.00052054,120]
[330041640,1718958640004,-900.14,0.00052054,120]
[330041641,1718958640015,-15399.42,0.00052054,120]
[330041642,1718958640025,-500.0,0.00052054,120]
[330041643,1718958640036,-500.0,0.00052054,120]
[330041644,1718958640047,-5681.8,0.00052054,120]
[330041645,1718958640058,-872.42,0.00052054,120]
[330041646,1718958640069,-500.0,0.00052054,120]
[330041647,1718958640080,-500.0,0.00052054,120]
[330041648,1718958640091,-558.52,0.00052054,120]
[330041649,1718958640101,-505.41465183,0.00052054,120]
[330041650,1718958640111,-758.75,0.00052054,120]
[330041651,1718958640122,-537.07,0.00052054,120]
[330041652,1718958640133,-500.0,0.00052054,120]
[330041653,1718958640143,-500.0,0.00052054,120]
[330041654,1718958640153,-500.0,0.00052054,120]
[330041657,1718958640164,-500.0,0.00052054,120]
[330041660,1718958640174,-541.64,0.00052054,120]
[330041664,1718958640184,-500.0,0.00052054,120]
[330041667,1718958640194,-1508.49,0.00052054,120]
[330041669,1718958640205,-1194.17,0.00052054,120]
[330041670,1718958640215,-847.49,0.00052054,120]
[330041671,1718958640226,-500.0,0.00052054,120]
[330041672,1718958640236,-500.0,0.00052054,120]
[330041673,1718958640246,-3358.19,0.00052054,120]
[330041674,1718958640257,-974.26,0.00052054,120]
[330041675,1718958640267,-500.0,0.00052054,120]
[330041676,1718958640278,-500.0,0.00052054,120]
[330041677,1718958640288,-881.17,0.00052054,120]
[330041679,1718958640297,-500.0,0.00052054,120]
[330041681,1718958640308,-938.29,0.00052054,120]
[330041683,1718958640318,-5051.41,0.00052054,120]
[330041684,1718958640328,-500.0,0.00052054,60]
[330041685,1718958640340,-500.0,0.00052054,120]
[330041686,1718958640350,-500.0,0.00052054,120]
[330041687,1718958640359,-500.0,0.00052054,120]
[330041688,1718958640370,-500.0,0.00052054,120]
[330041689,1718958640379,-520.04913974,0.00052054,120]
[330041690,1718958640389,-500.0,0.00052054,120]
[330041691,1718958640399,-500.0,0.00052054,120]
[330041692,1718958640409,-500.0,0.00052054,120]
[330041693,1718958640419,-500.0,0.00052054,120]
[330041694,1718958640429,-500.0,0.00052054,120]
[330041695,1718958640440,-959.85,0.00052054,120]
[330041696,1718958640450,-500.0,0.00052054,120]
[330041697,1718958640459,-500.0,0.00052054,120]
[330041698,1718958640469,-2401.12,0.00052054,120]
[330041699,1718958640480,-500.0,0.00052054,120]
[330041700,1718958640490,-500.0,0.00052054,120]
[330041701,1718958640500,-1143.68,0.00052054,120]
[330041702,1718958640511,-2597.13,0.00052054,120]
[330041703,1718958640521,-500.0,0.00052054,120]
[330041704,1718958640532,-5498.31,0.00052054,120]
[330041705,1718958640542,-1427.29,0.00052054,120]
[330041706,1718958640558,-500.0,0.00052054,120]
[330041707,1718958640579,-500.0,0.00052054,2]
[330041708,1718958640592,-500.0,0.00052054,120]
[330041709,1718958640602,-1074.52,0.00052054,120]
[330041710,1718958640613,-500.0,0.00052054,120]
[330041711,1718958640624,-500.0,0.00052054,120]
[330041713,1718958640635,-500.0,0.00052054,120]
[330041715,1718958640647,-987.67,0.00052054,120]
[330041717,1718958640658,-987.67,0.00052054,120]
[330041719,1718958640669,-987.67,0.00052054,120]
[330041721,1718958640681,-500.0,0.00052054,120]
[330041722,1718958640692,-987.67,0.00052054,120]
[330041723,1718958640703,-500.0,0.00052054,120]
[330041724,1718958640714,-987.67,0.00052054,120]
[330041725,1718958640725,-500.0,0.00052054,120]
[330041726,1718958640736,-500.0,0.00052054,120]
[330041727,1718958640747,-159.24994648,0.00052078,60]
[330041728,1718958640757,-514.97515442,0.00052135,20]
[330041729,1718958640767,-500.0,0.00052135,120]
[330041730,1718958640778,-500.0,0.00052135,120]
[330041731,1718958640789,-987.67,0.00052135,120]
[330041732,1718958640800,-500.0,0.00052135,120]
[330041733,1718958640811,-987.67,0.00052135,120]
[330041734,1718958640822,-987.67,0.00052135,120]
[330041735,1718958640833,-987.67,0.00052135,120]
[330041736,1718958640845,-500.0,0.00052135,120]
[330041737,1718958640856,-500.0,0.00052135,120]
[330041738,1718958640867,-500.0,0.00052135,120]
[330041739,1718958640992,-500.0,0.00052135,120]
[330041740,1718958641003,-500.0,0.00052136,120]
[330041741,1718958641013,-500.0,0.00052136,120]
[330041742,1718958641024,-500.0,0.00052136,120]
[330041743,1718958641034,-504.92,0.00052136,120]
[330041744,1718958641044,-500.0,0.00052136,120]
[330041745,1718958641054,-500.0,0.00052136,120]
[330041746,1718958641064,-500.0,0.00052136,120]
[330041747,1718958641074,-500.0,0.00052136,120]
[330041748,1718958641084,-500.0,0.00052136,120]
[330041749,1718958641095,-500.0,0.00052136,120]
[330041750,1718958641105,-500.0,0.00052136,120]
[330041751,1718958641115,-500.0,0.00052136,120]
[330041752,1718958641125,-500.0,0.00052136,120]
[330041753,1718958641135,-500.0,0.00052136,120]
[330041754,1718958641145,-847.6,0.00052136,120]
[330041755,1718958641155,-518.92,0.00052136,120]
[330041756,1718958641165,-684.56,0.00052136,120]
[330041757,1718958641174,-867.73,0.00052136,120]
[330041758,1718958641184,-500.0,0.00052136,120]
[330041759,1718958641194,-500.0,0.00052136,120]
[330041760,1718958641204,-500.0,0.00052136,120]
[330041761,1718958641214,-500.0,0.00052136,120]
[330041762,1718958641224,-500.0,0.00052136,2]
[330041763,1718958641234,-500.0,0.00052136,120]
[330041764,1718958641243,-500.0,0.00052136,120]
[330041765,1718958641252,-500.0,0.00052136,120]
[330041766,1718958641262,-663.47,0.00052136,120]
[330041767,1718958641271,-500.0,0.00052136,120]
[330041768,1718958641281,-620.8,0.00052136,120]
[330041769,1718958641291,-815.64,0.00052136,120]
[330041770,1718958641300,-500.0,0.00052136,120]
[330041771,1718958641310,-500.0,0.00052136,120]
[330041772,1718958641319,-500.0,0.00052136,120]
[330041773,1718958641329,-2173.16,0.00052136,120]
[330041774,1718958641340,-500.0,0.00052136,120]
[330041775,1718958641350,-398.94187108,0.00052136,120]
[330041776,1718958641494,-101.05812892,0.00052136,120]
[330041777,1718958641505,-500.0,0.00052136,120]
[330041778,1718958641515,-832.34,0.00052136,120]
[330041779,1718958641525,-500.0,0.00052136,120]
[330041780,1718958641537,-2000.0,0.00052136,5]
[330041781,1718958641548,-500.0,0.00052136,120]
[330041782,1718958641558,-636.51,0.00052136,120]
[330041783,1718958641568,-500.0,0.00052136,120]
[330041784,1718958641578,-559.2,0.00052136,120]
[330041785,1718958641591,-500.0,0.00052136,120]
[330041786,1718958641601,-797.62,0.00052136,120]
[330041787,1718958641612,-500.0,0.00052136,120]
[330041788,1718958641623,-500.0,0.00052136,120]
[330041789,1718958641633,-1000.26,0.00052136,120]
[330041790,1718958641643,-1612.37,0.00052136,120]
[330041791,1718958641653,-500.0,0.00052136,120]
[330041792,1718958641663,-500.0,0.00052136,120]
[330041793,1718958641672,-882.82,0.00052136,120]
[330041794,1718958641682,-500.0,0.00052136,120]
[330041795,1718958641692,-1308.42,0.00052136,120]
[330041796,1718958641702,-1449.31,0.00052136,120]
[330041797,1718958641712,-500.0,0.00052136,120]
[330041798,1718958641721,-500.0,0.00052136,120]
[330041799,1718958641730,-500.0,0.00052136,120]
[330041800,1718958641740,-500.0,0.00052136,120]
[330041801,1718958641751,-573.49,0.00052136,120]
[330041802,1718958641766,-500.0,0.00052136,7]
[330041803,1718958641782,-500.0,0.00052136,120]
[330041804,1718958641796,-500.0,0.00052136,120]
[330041805,1718958641808,-500.0,0.00052136,120]
[330041806,1718958641823,-641.04,0.00052136,120]
[330041807,1718958641837,-1688.86,0.00052136,120]
[330041808,1718958641851,-1450.84,0.00052136,120]
[330041809,1718958641866,-500.0,0.00052136,120]
[330041810,1718958641881,-500.0,0.00052136,120]
[330041811,1718958641896,-500.0,0.00052136,120]
[330041812,1718958641911,-589.47,0.00052136,120]
[330041813,1718958641924,-4068.38,0.00052136,120]
[330041814,1718958641937,-500.0,0.00052136,120]
[330041815,1718958641952,-1325.21,0.00052136,120]
[330041816,1718958641965,-500.0,0.00052136,120]
[330041817,1718958641978,-1256.39,0.00052136,120]
[330041818,1718958641989,-8594.43,0.00052136,120]
[330041819,1718958642004,-2048.77,0.00052136,120]
[330041820,1718958642018,-500.0,0.00052136,120]
[330041821,1718958642032,-500.0,0.00052136,120]
[330041822,1718958642044,-668.83,0.00052136,120]
[330041823,1718958642058,-1570.39614735,0.00052136,120]
[330041824,1718958642079,-25690.65385265,0.00052136,120]
[330041825,1718958642094,-500.0,0.00052136,120]
[330041826,1718958642105,-1002.32,0.00052136,120]
[330041827,1718958642115,-500.0,0.00052136,120]
[330041828,1718958642130,-500.0,0.00052136,120]
[330041829,1718958642145,-500.0,0.00052136,120]
[330041830,1718958642159,-500.0,0.00052136,120]
[330041831,1718958642171,-500.0,0.00052136,120]
[330041832,1718958642184,-505.26,0.00052136,120]
[330041833,1718958642196,-985.96,0.00052136,120]
[330041834,1718958642212,-500.0,0.00052136,120]
[330041835,1718958642224,-2489.39,0.00052136,21]
[330041836,1718958642235,-834.49,0.00052136,120]
[330041837,1718958642250,-500.0,0.00052136,120]
[330041838,1718958642263,-510.98,0.00052136,120]
[330041839,1718958642276,-500.0,0.00052136,120]
[330041840,1718958642289,-500.0,0.00052136,120]
[330041841,1718958642301,-4928.55,0.00052136,120]
[330041842,1718958642314,-500.0,0.00052136,120]
[330041843,1718958642326,-4260.53,0.00052136,120]
[330041844,1718958642338,-1027.56,0.00052136,120]
[330041845,1718958642353,-250.0,0.00052136,120]
[330041846,1718958642366,-1048.49,0.00052136,120]
[330041847,1718958642379,-900.14,0.00052136,120]
[330041848,1718958642391,-15399.42,0.00052136,120]
[330041849,1718958642403,-500.0,0.00052136,120]
[330041850,1718958642416,-5681.8,0.00052136,120]
[330041851,1718958642428,-872.42,0.00052136,120]
[330041852,1718958642441,-500.0,0.00052136,120]
[330041853,1718958642454,-500.0,0.00052136,120]
[330041854,1718958642466,-558.52,0.00052136,120]
[330041855,1718958642479,-758.75,0.00052136,120]
[330041856,1718958642491,-537.07,0.00052136,120]
[330041857,1718958642503,-500.0,0.00052136,120]
[330041858,1718958642515,-500.0,0.00052136,120]
[330041859,1718958642527,-500.0,0.00052136,120]
[330041860,1718958642547,-1508.49,0.00052136,120]
[330041861,1718958642568,-1194.17,0.00052136,120]
[330041862,1718958642583,-847.49,0.00052136,120]
[330041863,1718958642600,-500.0,0.00052136,120]
[330041864,1718958642615,-500.0,0.00052136,120]
[330041865,1718958642630,-3358.19,0.00052136,120]
[330041866,1718958642646,-974.26,0.00052136,120]
[330041867,1718958642660,-500.0,0.00052136,120]
[330041868,1718958642674,-881.17,0.00052136,120]
[330041869,1718958642685,-938.29,0.00052136,120]
[330041870,1718958642696,-500.0,0.00052136,120]
[330041871,1718958642706,-5051.41,0.00052136,120]
[330041872,1718958642716,-500.0,0.00052136,60]
[330041873,1718958642726,-500.0,0.00052136,120]
[330041874,1718958642736,-500.0,0.00052136,120]
[330041875,1718958642746,-500.0,0.00052136,120]
[330041876,1718958642756,-500.0,0.00052136,120]
[330041877,1718958642766,-500.0,0.00052136,120]
[330041878,1718958642776,-500.0,0.00052136,120]
[330041884,1718958642936,-500.0,0.00052136,120]
[330041887,1718958642955,-500.0,0.00052136,120]
[330041888,1718958642965,-959.85,0.00052136,120]
[330041889,1718958642975,-500.0,0.00052136,120]
[330041890,1718958642985,-2401.12,0.00052136,120]
[330041891,1718958642994,-500.0,0.00052136,120]
[330041892,1718958643004,-1143.68,0.00052136,120]
[330041894,1718958643014,-2597.13,0.00052136,120]
[330041895,1718958643023,-500.0,0.00052136,120]
[330041896,1718958643032,-5498.31,0.00052136,120]
[330041897,1718958643042,-1427.29,0.00052136,120]
[330041898,1718958643052,-500.0,0.00052136,2]
[330041899,1718958643062,-1074.52,0.00052136,120]
[330041900,1718958643072,-500.0,0.00052136,120]
[330041901,1718958643081,-500.0,0.00052136,120]
[330041902,1718958643094,-5146.2862004,0.00052204,120]
[330041903,1718958643105,-500.0,0.00052218,120]
[330041904,1718958643114,-548.09,0.00052218,120]
[330041905,1718958643125,-987.67,0.00052218,120]
[330041906,1718958643135,-987.67,0.00052218,120]
[330041907,1718958643146,-987.67,0.00052218,120]
[330041908,1718958643156,-500.0,0.00052218,120]
[330041909,1718958643166,-500.0,0.00052218,120]
[330041910,1718958643176,-581.60442214,0.00052218,120]
[330041911,1718958643186,-505.0471163,0.00052219,120]
[330041912,1718958643196,-500.0,0.00052219,120]
[330041913,1718958643206,-502.97331704,0.00052219,120]
[330041914,1718958643215,-504.92,0.00052219,120]
[330041915,1718958643225,-500.0,0.00052219,120]
[330041917,1718958643235,-533.0,0.00052219,120]
[330041918,1718958643246,-500.0,0.00052219,120]
[330041919,1718958643256,-500.0,0.00052219,120]
[330041920,1718958643266,-500.0,0.00052219,120]
[330041921,1718958643276,-500.0,0.00052219,120]
[330041922,1718958643287,-500.0,0.00052219,120]
[330041923,1718958643296,-500.0,0.00052219,120]
[330041924,1718958643305,-500.0,0.00052219,120]
[330041925,1718958643315,-500.0,0.00052219,120]
[330041926,1718958643324,-847.6,0.00052219,120]
[330041927,1718958643334,-518.92,0.00052219,120]
[330041928,1718958643347,-684.56,0.00052219,120]
[330041929,1718958643356,-867.73,0.00052219,120]
[330041930,1718958643365,-500.0,0.00052219,120]
[330041931,1718958643375,-500.0,0.00052219,120]
[330041932,1718958643385,-500.0,0.00052219,120]
[330041933,1718958643394,-500.0,0.00052219,120]
[330041934,1718958643404,-500.0,0.00052219,120]
[330041935,1718958643414,-500.0,0.00052219,120]
[330041936,1718958643424,-500.0,0.00052219,120]
[330041937,1718958643434,-663.47,0.00052219,120]
[330041938,1718958643445,-620.8,0.00052219,120]
[330041939,1718958643455,-815.64,0.00052219,120]
[330041940,1718958643465,-500.0,0.00052219,120]